[Event "I Torneo de Maestras 2019"]
[Site "Corralejo"]
[Date "2019.09.23"]
[Round "4.2"]
[White "Martinez, Ayelen"]
[Black "Safranska, Anda"]
[Result "1/2-1/2"]
[ECO "B06"]
[WhiteElo "2169"]
[BlackElo "2139"]
[Annotator "ChessBase"]
[PlyCount "101"]
[EventDate "2019.09.21"]
[EventType "tourn"]
[EventCountry "ESP"]
[SourceTitle "playchess.com"]
[Source "ChessBase"]
[SourceQuality "1"]
[TimeControl "5400+30"]

1. e4 {[%emt 0:00:00]} g6 {[%emt 0:00:00]} 2. d4 {[%emt 0:00:00]} Bg7 {[%emt 0:00:00]} 3. Nc3 {[%emt 0:00:00]} c6 {[%emt 0:00:14]} 4. Nf3 {[%emt 0:00:09]} d6 {[%emt 0:00:38]} 5. Be3 {[%emt 0:00:10]} b5 {[%emt 0:00:46]} 6. Bd3 {[%emt 0:00:21]} Nd7 {[%emt 0:00:27]} 7. a4 {[%emt 0:01:46]} b4 {[%emt 0:00:25]} 8. Ne2 {[%emt 0:00:08]} a5 {[%emt 0:01:30]} 9. Qd2 {[%emt 0:02:12]} Ba6 {[%emt 0:00:40]} 10. O-O {[%emt 0:00:50]} Ngf6 {[%emt 0:03:47]} 11. Bh6 {[%emt 0:03:14]} O-O {[%emt 0:10:24]} 12. Ng3 {[%emt 0:04:04]} Bxd3 {[%emt 0:05:36]} 13. cxd3 {[%emt 0:00:53]} e5 {[%emt 0:02:07]} 14. Bxg7 {[%emt 0:11:28]} Kxg7 {[%emt 0:00:29]} 15. Qg5 {[%emt 0:01:52]} Ne8 {[%emt 0:09:39]} 16. Nf5+ {[%emt 0:12:05]} Kh8 {[%emt 0:00:12]} 17. Qxd8 {[%emt 0:00:13]} Rxd8 {[%emt 0:00:07]} 18. Ne7 {[%emt 0:00:16]} c5 {[%emt 0:02:01]} 19. dxe5 {[%emt 0:13:55]} Nxe5 {[%emt 0:01:45]} 20. Nxe5 {[%emt 0:00:25]} dxe5 {[%emt 0:00:04]} 21. Nc6 {[%emt 0:16:58]} Rxd3 {[%emt 0:00:49]} 22. Nxe5 {[%emt 0:03:46]} Rd4 {[%emt 0:01:45]} 23. f3 {[%emt 0:10:06]} Nc7 {[%emt 0:07:10]} 24. Rf2 {[%emt 0:04:23]} Rd6 {[%emt 0:15:25]} 25. Nc4 {[%emt 0:00:33]} Ra6 {[%emt 0:00:05]} 26. Rd1 {[%emt 0:00:06]} Ne6 {[%emt 0:00:06]} 27. Rd7 {[%emt 0:00:55]} Kg8 {[%emt 0:00:48]} 28. Rd5 {[%emt 0:08:47]} Rc8 {[%emt 0:08:03]} 29. f4 {[%emt 0:01:45]} Rc7 {[%emt 0:05:39]} 30. g4 {[%emt 0:01:10]} h6 {[%emt 0:00:44]} 31. h4 {[%emt 0:00:25]} Nd4 {[%emt 0:06:07]} 32. Kg2 {[%emt 0:01:50]} Kh7 {[%emt 0:04:17]} 33. Kh3 {[%emt 0:00:59]} f6 {[%emt 0:00:40]} 34. e5 {[%emt 0:00:30]} f5 {[%emt 0:04:27]} 35. g5 {[%emt 0:00:27]} hxg5 {[%emt 0:03:20]} 36. hxg5 {[%emt 0:00:06]} Kg7 {[%emt 0:00:08]} 37. Nd6 {[%emt 0:00:55]} Ra8 {[%emt 0:00:05]} 38. Kg3 {[%emt 0:00:29]} Rd8 {[%emt 0:00:43]} 39. Rh2 {[%emt 0:00:33]} Ne6 {[%emt 0:01:21]} 40. Kf3 {[%emt 0:00:38]} Nd4+ {[%emt 0:03:23]} 41. Ke3 {[%emt 0:00:08]} Ne6 {[%emt 0:00:05]} 42. Rd1 {[%emt 0:00:52]} c4 {[%emt 0:02:04]} 43. Rc1 {[%emt 0:00:34]} c3 {[%emt 0:00:13]} 44. Rch1 {[%emt 0:00:35]} Nf8 {[%emt 0:00:06]} 45. bxc3 {[%emt 0:00:26]} Rxc3+ {[%emt 0:00:55]} 46. Kd4 {[%emt 0:00:01]} Ne6+ {[%emt 0:00:27]} 47. Kd5 {[%emt 0:00:06]} Nxf4+ {[%emt 0:00:06]} 48. Kd4 {[%emt 0:00:04]} Ne6+ {[%emt 0:00:55]} 49. Kd5 {[%emt 0:00:01]} Nxg5 {[%emt 0:01:44]} 50. Rg2 {[%emt 0:00:42]} Ne4 {[%emt 0:00:05]} 51. Ke6 {[%emt 0:00:06]} 1/2-1/2

[Event "I Torneo de Maestras 2019"]
[Site "Corralejo"]
[Date "2019.09.23"]
[Round "4.3"]
[White "Rodriguez Redondo, Adhara"]
[Black "Guillo Longares, Cecilia"]
[Result "1/2-1/2"]
[ECO "B36"]
[WhiteElo "2065"]
[BlackElo "1960"]
[Annotator "NA"]
[PlyCount "167"]
[EventDate "2019.09.21"]
[EventType "tourn"]
[EventCountry "ESP"]
[SourceTitle "playchess.com"]
[Source "ChessBase"]
[SourceQuality "1"]
[TimeControl "5400+30"]

1. e4 {[%emt 0:00:42]} c5 {[%emt 0:00:00]} 2. Nf3 {[%emt 0:00:09]} Nc6 {[%emt 0:00:00]} 3. d4 {[%emt 0:00:16]} cxd4 {[%emt 0:00:00]} 4. Nxd4 {[%emt 0:00:40]} g6 {[%emt 0:00:00]} 5. c4 {[%emt 0:00:18]} Nf6 {[%emt 0:00:00]} 6. Nc3 {[%emt 0:00:13]} Nxd4 {[%emt 0:00:00]} 7. Qxd4 {[%emt 0:00:05]} d6 {[%emt 0:00:04]} 8. f3 {[%emt 0:00:36]} Bg7 {[%emt 0:00:20]} 9. Be3 {[%emt 0:00:19]} O-O {[%emt 0:00:19]} 10. Qd2 {[%emt 0:00:04]} a5 {[%emt 0:00:10]} 11. Na4 {[%emt 0:00:23]} Nd7 {[%emt 0:04:32]} 12. O-O-O {[%emt 0:01:44]} Qc7 {[%emt 0:02:29]} 13. Kb1 {[%emt 0:00:52]} Qc6 {[%emt 0:01:38]} 14. Qc2 {[%emt 0:04:45]} Nc5 {[%emt 0:05:52]} 15. Nxc5 {[%emt 0:05:23]} dxc5 {[%emt 0:00:11]} 16. h4 {[%emt 0:02:33]} Ra6 {[%emt 0:00:22]} 17. Rd5 {[%emt 0:05:17]} b6 {[%emt 0:28:22]} 18. h5 {[%emt 0:06:01]} a4 {[%emt 0:01:00]} 19. a3 {[%emt 0:06:19]} Be6 {[%emt 0:03:40]} 20. Rd1 {[%emt 0:02:07]} Qc7 {[%emt 0:00:40]} 21. hxg6 {[%emt 0:06:14]} fxg6 {[%emt 0:00:03]} 22. Qf2 {[%emt 0:11:51]} Rf7 {[%emt 0:06:56]} 23. f4 {[%emt 0:04:50]} Ra8 {[%emt 0:08:38]} 24. Bd3 {[%emt 0:11:07]} b5 {[%emt 0:06:57]} 25. cxb5 $16 {[%emt 0:07:46]} c4 {[%emt 0:02:59]} 26. Rc1 {[%emt 0:02:12]} Rc8 {[%emt 0:06:42]} 27. Bd4 {[%emt 0:10:17]} Rxf4 {[%emt 0:03:11]} 28. Qe3 {[%emt 0:01:07]} Be5 {[%emt 0:10:16]} 29. b6 {[%emt 0:04:48]} Qd6 {[%emt 0:00:01]} 30. Bxe5 {[%emt 0:01:06]} Qxe5 {[%emt 0:00:02]} 31. b7 {[%emt 0:00:50]} Rb8 {[%emt 0:00:04]} 32. Bxc4 {[%emt 0:01:21]} Bxc4 {[%emt 0:00:35]} 33. Rxc4 {[%emt 0:00:48]} Rxb7 {[%emt 0:00:04]} 34. Qe2 {[%emt 0:01:20]} Qb5 {[%emt 0:04:40]} 35. Qc2 {[%emt 0:01:41]} Qb3 {[%emt 0:00:47]} 36. Re1 {[%emt 0:01:23]} Qxa3 {[%emt 0:03:23]} 37. Rc8+ {[%emt 0:00:11]} Kg7 {[%emt 0:00:11]} 38. Rc3 {[%emt 0:00:46]} Qb4 {[%emt 0:00:19]} 39. Rc1 {[%emt 0:00:35]} Qxe4 {[%emt 0:00:57]} 40. Rd3 {[%emt 0:00:29]} Qb4 {[%emt 0:01:03]} 41. Ka1 {[%emt 0:00:27]} Rc4 {[%emt 0:00:44]} 42. Rc3 {[%emt 0:00:32]} Rxc3 {[%emt 0:00:06]} 43. Qxc3+ {[%emt 0:00:15]} Qxc3 {[%emt 0:00:05]} 44. Rxc3 {[%emt 0:00:08]} e5 {[%emt 0:01:19]} 45. Rc4 {[%emt 0:00:41]} Ra7 {[%emt 0:00:43]} 46. Ka2 {[%emt 0:00:36]} Kf6 {[%emt 0:00:21]} 47. Ka3 {[%emt 0:00:43]} Kf5 {[%emt 0:00:23]} 48. g4+ {[%emt 0:00:12]} Kf6 {[%emt 0:00:18]} 49. Kb4 {[%emt 0:00:49]} Kg5 {[%emt 0:02:19]} 50. Re4 {[%emt 0:00:20]} Kf6 {[%emt 0:00:32]} 51. Rc4 {[%emt 0:00:10]} Ra6 {[%emt 0:00:35]} 52. Kb5 {[%emt 0:00:35]} Ra8 {[%emt 0:00:28]} 53. Kb4 {[%emt 0:00:24]} Rb8+ {[%emt 0:00:33]} 54. Kc3 {[%emt 0:00:23]} Ra8 {[%emt 0:00:08]} 55. Kb4 {[%emt 0:00:06]} Kg5 {[%emt 0:00:28]} 56. Re4 {[%emt 0:00:07]} Rb8+ {[%emt 0:00:15]} 57. Kc3 {[%emt 0:00:12]} Rb3+ {[%emt 0:01:05]} 58. Kc2 {[%emt 0:00:05]} Rg3 {[%emt 0:00:31]} 59. Rxe5+ {[%emt 0:02:39]} Kf4 {[%emt 0:00:37]} 60. Ra5 {[%emt 0:00:08]} Rxg4 {[%emt 0:00:18]} 61. Rxa4+ {[%emt 0:00:06]} Kf5 {[%emt 0:00:41]} 62. b4 {[%emt 0:00:56]} h5 {[%emt 0:00:22]} 63. Ra5+ {[%emt 0:00:34]} Ke6 {[%emt 0:00:11]} 64. b5 {[%emt 0:00:46]} Kd6 {[%emt 0:00:30]} 65. Ra1 {[%emt 0:00:34]} Kc5 {[%emt 0:00:34]} 66. Rb1 {[%emt 0:00:20]} Kb6 {[%emt 0:00:07]} 67. Kd3 {[%emt 0:00:39]} h4 {[%emt 0:01:15]} 68. Ke3 {[%emt 0:00:24]} g5 {[%emt 0:00:32]} 69. Kf3 {[%emt 0:00:32]} Rg3+ {[%emt 0:00:13]} 70. Kf2 {[%emt 0:00:06]} g4 {[%emt 0:00:33]} 71. Rb4 {[%emt 0:00:50]} Rf3+ {[%emt 0:00:41]} 72. Ke2 {[%emt 0:00:27]} Rg3 {[%emt 0:00:29]} 73. Kf2 {[%emt 0:00:04]} Kc5 {[%emt 0:00:18]} 74. Rb1 {[%emt 0:00:13]} Rf3+ {[%emt 0:00:34]} 75. Kg2 {[%emt 0:01:07]} h3+ {[%emt 0:00:27]} 76. Kh2 {[%emt 0:00:41]} Rf2+ {[%emt 0:00:06]} 77. Kg1 {[%emt 0:00:24]} g3 {[%emt 0:01:02]} 78. b6 {[%emt 0:00:28]} Rf8 {[%emt 0:00:37]} 79. b7 {[%emt 0:00:20]} Rb8 {[%emt 0:00:19]} 80. Rb3 {[%emt 0:00:41]} h2+ {[%emt 0:00:39]} 81. Kg2 {[%emt 0:00:37]} Rh8 {[%emt 0:00:28]} 82. Rb1 {[%emt 0:00:23]} Rb8 {[%emt 0:00:35]} 83. Kxg3 {[%emt 0:00:21]} Rxb7 {[%emt 0:00:09]} 84. Rc1+ {[%emt 0:00:07]} 1/2-1/2

[Event "I Torneo de Maestras 2019"]
[Site "Corralejo"]
[Date "2019.09.23"]
[Round "4.4"]
[White "Thomas, Anysia"]
[Black "Navrotescu, Andreea-Cristiana"]
[Result "1-0"]
[ECO "A40"]
[WhiteElo "2112"]
[BlackElo "2242"]
[Annotator "ChessBase"]
[PlyCount "87"]
[EventDate "2019.09.21"]
[EventType "tourn"]
[EventCountry "ESP"]
[SourceTitle "playchess.com"]
[Source "ChessBase"]
[SourceQuality "1"]
[TimeControl "5400+30"]

1. d4 {[%emt 0:00:00]} e6 {[%emt 0:03:30]} 2. c4 {[%emt 0:00:00]} b6 {[%emt 0:00:04]} 3. e4 {[%emt 0:00:00]} Bb7 {[%emt 0:00:05]} 4. Bd3 {[%emt 0:00:06]} f5 {[%emt 0:03:42]} 5. exf5 {[%emt 0:02:22]} Bb4+ {[%emt 0:00:05]} 6. Kf1 {[%emt 0:00:07]} Nf6 {[%emt 0:00:36]} 7. Nf3 {[%emt 0:00:20]} O-O {[%emt 0:06:53]} 8. a3 {[%emt 0:00:16]} Be7 {[%emt 0:04:49]} 9. Nc3 {[%emt 0:00:48]} exf5 {[%emt 0:05:20]} 10. Bxf5 {[%emt 0:02:38]} a6 {[%emt 0:06:43]} 11. Bg5 {[%emt 0:12:33]} Qe8 {[%emt 0:02:32]} 12. Bxf6 {[%emt 0:07:12]} Bxf6 {[%emt 0:00:56]} 13. Qd3 {[%emt 0:02:03]} Qh5 {[%emt 0:02:59]} 14. Be4 {[%emt 0:03:34]} Nc6 {[%emt 0:15:54]} 15. Nd5 {[%emt 0:09:00]} Bd8 {[%emt 0:06:00]} 16. h4 {[%emt 0:16:58]} Kh8 {[%emt 0:05:35]} 17. Kg1 {[%emt 0:02:44]} b5 {[%emt 0:04:46]} 18. b3 {[%emt 0:03:29]} Na5 {[%emt 0:08:42]} 19. Ng5 {[%emt 0:04:35]} bxc4 {[%emt 0:03:24]} 20. bxc4 {[%emt 0:00:07]} c6 {[%emt 0:00:38]} 21. Ne3 {[%emt 0:04:02]} g6 {[%emt 0:03:12]} 22. c5 {[%emt 0:08:18]} Qh6 {[%emt 0:02:10]} 23. Ng4 {[%emt 0:01:29]} Qg7 {[%emt 0:00:01]} 24. Ne5 {[%emt 0:00:27]} Bf6 {[%emt 0:00:36]} 25. Qc3 {[%emt 0:04:31]} Rae8 {[%emt 0:10:21]} 26. Qxa5 {[%emt 0:03:59]} Bxe5 {[%emt 0:00:04]} 27. dxe5 {[%emt 0:00:06]} Qxe5 {[%emt 0:00:03]} 28. Re1 {[%emt 0:03:10]} d5 {[%emt 0:00:07]} 29. Qb4 {[%emt 0:01:01]} Bc8 {[%emt 0:02:37]} 30. Nf3 {[%emt 0:01:20]} Qf6 {[%emt 0:01:20]} 31. Bd3 {[%emt 0:00:47]} Bf5 {[%emt 0:00:39]} 32. Bxf5 {[%emt 0:00:46]} Qxf5 {[%emt 0:00:11]} 33. Kh2 {[%emt 0:02:27]} Re4 {[%emt 0:00:33]} 34. Rxe4 {[%emt 0:00:23]} dxe4 {[%emt 0:00:01]} 35. Qd4+ {[%emt 0:00:17]} Kg8 {[%emt 0:00:12]} 36. Ng5 {[%emt 0:00:44]} Qf4+ {[%emt 0:01:06]} 37. Kh3 {[%emt 0:01:00]} h6 {[%emt 0:00:30]} 38. Nxe4 {[%emt 0:01:43]} g5 {[%emt 0:00:54]} 39. g3 {[%emt 0:01:47]} Qf5+ {[%emt 0:00:32]} 40. Kh2 {[%emt 0:00:05]} gxh4 {[%emt 0:00:23]} 41. Rg1 {[%emt 0:00:47]} h3 {[%emt 0:00:03]} 42. g4 {[%emt 0:01:02]} Qd5 {[%emt 0:01:17]} 43. Nf6+ {[%emt 0:00:46]} Rxf6 {[%emt 0:00:04]} 44. Qxf6 {[%emt 0:00:04]} 1-0

[Event "I Torneo de Maestras 2019"]
[Site "Corralejo"]
[Date "2019.09.23"]
[Round "4.5"]
[White "Drljevic, Ljilja"]
[Black "Sosa Suarez, Carla Cristina"]
[Result "1-0"]
[ECO "B50"]
[WhiteElo "2162"]
[BlackElo "2069"]
[Annotator "ChessBase"]
[PlyCount "145"]
[EventDate "2019.09.21"]
[EventType "tourn"]
[EventCountry "ESP"]
[SourceTitle "playchess.com"]
[Source "ChessBase"]
[SourceQuality "1"]
[TimeControl "5400+30"]

1. e4 {[%emt 0:00:00]} c5 {[%emt 0:00:00]} 2. Nf3 {[%emt 0:00:04]} d6 {[%emt 0:00:10]} 3. b3 {[%emt 0:03:13]} e5 {[%emt 0:05:51]} 4. Bb2 {[%emt 0:00:22]} Nc6 {[%emt 0:04:14]} 5. Bc4 {[%emt 0:02:21]} a6 {[%emt 0:09:54]} 6. a4 {[%emt 0:00:48]} g6 {[%emt 0:04:41]} 7. Nc3 {[%emt 0:13:41]} Bg7 {[%emt 0:02:17]} 8. h4 {[%emt 0:03:57]} Bg4 {[%emt 0:08:47]} 9. Nd5 {[%emt 0:03:34]} Nd4 {[%emt 0:05:47]} 10. h5 {[%emt 0:11:03]} Nxf3+ {[%emt 0:15:56]} 11. gxf3 {[%emt 0:00:04]} Bxh5 {[%emt 0:00:50]} 12. Rxh5 {[%emt 0:07:09]} gxh5 {[%emt 0:00:17]} 13. f4 {[%emt 0:00:04]} Nf6 {[%emt 0:02:53]} 14. fxe5 {[%emt 0:14:53]} Nxd5 {[%emt 0:01:43]} 15. Qxh5 {[%emt 0:23:26]} Qe7 {[%emt 0:09:16]} 16. Bxd5 {[%emt 0:01:21]} Bxe5 {[%emt 0:02:54]} 17. Bxe5 {[%emt 0:00:32]} dxe5 {[%emt 0:00:11]} 18. O-O-O {[%emt 0:02:50]} O-O-O {[%emt 0:02:53]} 19. Qf5+ {[%emt 0:03:09]} Kb8 {[%emt 0:01:10]} 20. Rh1 {[%emt 0:00:31]} f6 {[%emt 0:08:32]} 21. Rh6 {[%emt 0:01:38]} Rd6 {[%emt 0:00:04]} 22. Rh3 {[%emt 0:01:27]} b5 {[%emt 0:01:16]} 23. b4 {[%emt 0:01:13]} cxb4 {[%emt 0:01:25]} 24. axb5 {[%emt 0:00:33]} axb5 {[%emt 0:00:46]} 25. Rb3 {[%emt 0:00:47]} Ra6 {[%emt 0:00:23]} 26. c3 {[%emt 0:00:47]} Ra1+ {[%emt 0:01:19]} 27. Kc2 {[%emt 0:00:21]} Rc8 {[%emt 0:01:19]} 28. Kd3 {[%emt 0:00:17]} Ra3 {[%emt 0:01:54]} 29. Rb1 {[%emt 0:00:44]} Rd8 {[%emt 0:01:04]} 30. Ke2 {[%emt 0:00:25]} Ra4 {[%emt 0:00:46]} 31. Rb2 {[%emt 0:01:08]} Ka7 {[%emt 0:00:32]} 32. Rb1 {[%emt 0:01:10]} bxc3 {[%emt 0:01:42]} 33. dxc3 {[%emt 0:00:14]} b4 {[%emt 0:02:16]} 34. cxb4 {[%emt 0:00:31]} Qd7 {[%emt 0:02:08]} 35. Qxf6 {[%emt 0:01:26]} Qb5+ {[%emt 0:00:21]} 36. Ke1 {[%emt 0:00:51]} Rc8 {[%emt 0:01:49]} 37. Qe7+ {[%emt 0:00:38]} Kb8 {[%emt 0:00:29]} 38. Qxe5+ {[%emt 0:00:16]} Ka7 {[%emt 0:00:11]} 39. Qe7+ {[%emt 0:00:22]} Kb8 {[%emt 0:00:13]} 40. Qd6+ {[%emt 0:00:13]} Ka7 {[%emt 0:00:28]} 41. Qe7+ {[%emt 0:01:01]} Kb8 {[%emt 0:00:25]} 42. Qe5+ {[%emt 0:01:12]} Ka7 {[%emt 0:00:06]} 43. Qd4+ {[%emt 0:00:38]} Kb8 {[%emt 0:00:19]} 44. f3 {[%emt 0:00:23]} Rc2 {[%emt 0:00:48]} 45. Qh8+ {[%emt 0:00:35]} Kc7 {[%emt 0:00:23]} 46. Qe5+ {[%emt 0:00:32]} Kd8 {[%emt 0:00:40]} 47. Qd6+ {[%emt 0:00:20]} Ke8 {[%emt 0:00:38]} 48. Qe6+ {[%emt 0:00:20]} Kd8 {[%emt 0:00:11]} 49. Qg8+ {[%emt 0:00:43]} Kc7 {[%emt 0:00:08]} 50. Qf7+ {[%emt 0:00:37]} Kd8 {[%emt 0:00:37]} 51. Qf6+ {[%emt 0:00:30]} Kc7 {[%emt 0:01:30]} 52. Qe7+ {[%emt 0:00:22]} Qd7 {[%emt 0:00:35]} 53. Qxd7+ {[%emt 0:00:37]} Kxd7 {[%emt 0:00:03]} 54. Bb3 {[%emt 0:00:05]} Rh2 {[%emt 0:00:46]} 55. Bxa4+ {[%emt 0:00:16]} Ke7 {[%emt 0:00:07]} 56. Rd1 {[%emt 0:00:22]} h5 {[%emt 0:00:13]} 57. Rd2 {[%emt 0:00:35]} Rh1+ {[%emt 0:00:39]} 58. Kf2 {[%emt 0:00:06]} h4 {[%emt 0:00:32]} 59. Kg2 {[%emt 0:00:32]} Rb1 {[%emt 0:00:22]} 60. Bc2 {[%emt 0:00:36]} Rxb4 {[%emt 0:00:07]} 61. Kh3 {[%emt 0:00:15]} Kf6 {[%emt 0:00:19]} 62. Kxh4 {[%emt 0:00:14]} Ke5 {[%emt 0:00:10]} 63. Kg5 {[%emt 0:00:27]} Rb8 {[%emt 0:00:24]} 64. f4+ {[%emt 0:00:10]} Ke6 {[%emt 0:00:06]} 65. f5+ {[%emt 0:00:05]} Kf7 {[%emt 0:00:10]} 66. Rd7+ {[%emt 0:00:24]} Kf8 {[%emt 0:00:09]} 67. e5 {[%emt 0:00:19]} Rb6 {[%emt 0:00:25]} 68. e6 {[%emt 0:00:43]} Rc6 {[%emt 0:00:19]} 69. Kf6 {[%emt 0:01:21]} Kg8 {[%emt 0:00:39]} 70. Be4 {[%emt 0:00:28]} Rb6 {[%emt 0:00:15]} 71. Rd8+ {[%emt 0:00:52]} Kh7 {[%emt 0:00:08]} 72. Kf7 {[%emt 0:01:04]} Rb4 {[%emt 0:00:31]} 73. e7 {[%emt 0:00:43]} 1-0

[Event "I Torneo de Maestras 2019"]
[Site "Corralejo"]
[Date "2019.09.24"]
[Round "5.1"]
[White "Sosa Suarez, Carla Cristina"]
[Black "Palma, Maria"]
[Result "1-0"]
[ECO "B30"]
[WhiteElo "2069"]
[BlackElo "2100"]
[Annotator "ChessBase"]
[PlyCount "89"]
[EventDate "2019.09.21"]
[EventType "tourn"]
[EventCountry "ESP"]
[SourceTitle "playchess.com"]
[Source "ChessBase"]
[SourceQuality "1"]
[TimeControl "5400+30"]

1. e4 {[%emt 0:00:00]} c5 {[%emt 0:00:00]} 2. b4 {[%emt 0:00:00]} cxb4 {[%emt 0:00:50]} 3. Nf3 {[%emt 0:00:00]} Nc6 {[%emt 0:06:12]} 4. Bb2 {[%emt 0:02:50]} d6 {[%emt 0:06:42]} 5. d4 {[%emt 0:01:23]} Nf6 {[%emt 0:06:10]} 6. d5 {[%emt 0:06:12]} Nb8 {[%emt 0:02:39]} 7. Bd3 {[%emt 0:04:48]} g6 {[%emt 0:01:30]} 8. a3 {[%emt 0:04:05]} bxa3 {[%emt 0:01:11]} 9. Nxa3 {[%emt 0:01:12]} Bg7 {[%emt 0:01:54]} 10. Nc4 {[%emt 0:04:40]} Nbd7 {[%emt 0:07:20]} 11. Ra3 {[%emt 0:07:58]} O-O {[%emt 0:02:41]} 12. Qa1 {[%emt 0:00:42]} a6 {[%emt 0:11:41]} 13. O-O {[%emt 0:02:27]} Nh5 {[%emt 0:04:31]} 14. Nd4 {[%emt 0:13:53]} Nf4 {[%emt 0:03:19]} 15. Re1 {[%emt 0:09:05]} Nxd3 {[%emt 0:02:48]} 16. Rxd3 {[%emt 0:00:09]} Ne5 {[%emt 0:03:07]} 17. Nxe5 {[%emt 0:00:29]} Bxe5 {[%emt 0:00:08]} 18. Qc1 {[%emt 0:05:40]} Bg7 {[%emt 0:03:33]} 19. Bc3 {[%emt 0:06:37]} Bd7 {[%emt 0:02:49]} 20. Bd2 {[%emt 0:01:53]} Qc7 {[%emt 0:07:20]} 21. Bh6 {[%emt 0:03:19]} b5 {[%emt 0:09:27]} 22. Nf5 {[%emt 0:01:37]} Bxf5 {[%emt 0:03:56]} 23. exf5 {[%emt 0:00:05]} f6 {[%emt 0:04:36]} 24. h4 {[%emt 0:02:45]} Rac8 {[%emt 0:01:10]} 25. Qe3 {[%emt 0:04:11]} Rf7 {[%emt 0:00:43]} 26. fxg6 {[%emt 0:01:56]} hxg6 {[%emt 0:00:05]} 27. c3 {[%emt 0:00:31]} Kh7 {[%emt 0:01:55]} 28. Bxg7 {[%emt 0:00:07]} Rxg7 {[%emt 0:00:28]} 29. Qf4 {[%emt 0:00:25]} Qc4 {[%emt 0:01:42]} 30. Qd2 {[%emt 0:00:40]} a5 {[%emt 0:00:31]} 31. h5 {[%emt 0:00:52]} g5 {[%emt 0:00:55]} 32. Rde3 {[%emt 0:00:47]} Rc7 {[%emt 0:01:43]} 33. Qc2+ {[%emt 0:00:03]} Kh6 {[%emt 0:00:56]} 34. Qf5 {[%emt 0:01:15]} Qf4 {[%emt 0:00:46]} 35. Qd3 {[%emt 0:01:34]} b4 {[%emt 0:00:51]} 36. cxb4 {[%emt 0:01:17]} axb4 {[%emt 0:00:13]} 37. Re4 {[%emt 0:00:21]} Qf5 {[%emt 0:00:24]} 38. g4 {[%emt 0:00:25]} Qc8 {[%emt 0:01:01]} 39. Rxb4 {[%emt 0:00:21]} Rc3 {[%emt 0:00:33]} 40. Qe4 {[%emt 0:00:38]} Qc7 {[%emt 0:00:28]} 41. Kg2 {[%emt 0:00:24]} Rc2 {[%emt 0:00:31]} 42. Re2 {[%emt 0:03:24]} Rc1 {[%emt 0:00:25]} 43. Reb2 {[%emt 0:00:53]} Qc3 {[%emt 0:01:06]} 44. Rb8 {[%emt 0:00:45]} f5 {[%emt 0:00:27]} 45. Qxf5 {[%emt 0:01:23]} 1-0

[Event "I Torneo de Maestras 2019"]
[Site "Corralejo"]
[Date "2019.09.24"]
[Round "5.2"]
[White "Navrotescu, Andreea-Cristiana"]
[Black "Drljevic, Ljilja"]
[Result "1-0"]
[ECO "A53"]
[WhiteElo "2242"]
[BlackElo "2162"]
[Annotator "ChessBase"]
[PlyCount "75"]
[EventDate "2019.09.21"]
[EventType "tourn"]
[EventCountry "ESP"]
[SourceTitle "playchess.com"]
[Source "ChessBase"]
[SourceQuality "1"]
[TimeControl "5400+30"]

1. d4 {[%emt 0:00:00]} Nf6 {[%emt 0:03:32]} 2. c4 {[%emt 0:00:00]} d6 {[%emt 0:00:04]} 3. Nc3 {[%emt 0:00:00]} Nbd7 {[%emt 0:00:19]} 4. e4 {[%emt 0:00:58]} c6 {[%emt 0:00:21]} 5. Nge2 {[%emt 0:01:02]} g6 {[%emt 0:13:03]} 6. Ng3 {[%emt 0:06:19]} h5 {[%emt 0:03:05]} 7. Be2 {[%emt 0:00:47]} h4 {[%emt 0:07:16]} 8. Nf1 {[%emt 0:03:28]} e5 {[%emt 0:04:48]} 9. d5 {[%emt 0:01:04]} Be7 {[%emt 0:06:17]} 10. Ne3 {[%emt 0:17:25]} Nc5 {[%emt 0:06:41]} 11. Qc2 {[%emt 0:01:29]} a5 {[%emt 0:01:27]} 12. O-O {[%emt 0:02:15]} Nh5 {[%emt 0:00:57]} 13. Bg4 {[%emt 0:09:35]} Nf4 {[%emt 0:10:52]} 14. b3 {[%emt 0:04:11]} Bxg4 {[%emt 0:03:06]} 15. Nxg4 {[%emt 0:00:03]} Rh5 {[%emt 0:01:28]} 16. Bxf4 {[%emt 0:09:49]} exf4 {[%emt 0:00:04]} 17. h3 {[%emt 0:00:18]} Qd7 {[%emt 0:10:20]} 18. Rfe1 {[%emt 0:05:19]} Rg5 {[%emt 0:01:29]} 19. f3 {[%emt 0:03:01]} O-O-O {[%emt 0:02:00]} 20. a3 {[%emt 0:04:10]} f5 {[%emt 0:01:44]} 21. Nf2 {[%emt 0:00:02]} Bf6 {[%emt 0:02:33]} 22. b4 {[%emt 0:01:05]} fxe4 {[%emt 0:07:00]} 23. Ncxe4 {[%emt 0:08:38]} Nxe4 {[%emt 0:02:05]} 24. Nxe4 {[%emt 0:00:15]} Bd4+ {[%emt 0:02:21]} 25. Kh1 {[%emt 0:02:27]} Re5 {[%emt 0:01:20]} 26. dxc6 {[%emt 0:02:30]} bxc6 {[%emt 0:00:53]} 27. Rab1 {[%emt 0:01:00]} Qc7 {[%emt 0:02:16]} 28. Qa4 {[%emt 0:00:55]} Rde8 {[%emt 0:02:40]} 29. Red1 {[%emt 0:01:05]} c5 {[%emt 0:01:08]} 30. bxa5 {[%emt 0:00:25]} R8e7 {[%emt 0:02:20]} 31. a6 {[%emt 0:00:28]} Qa7 {[%emt 0:00:44]} 32. Nxd6+ {[%emt 0:03:49]} Kd8 {[%emt 0:00:01]} 33. Qc6 {[%emt 0:00:33]} Rc7 {[%emt 0:00:53]} 34. Nb7+ {[%emt 0:01:21]} Kc8 {[%emt 0:00:05]} 35. Qxg6 {[%emt 0:00:15]} Rg7 {[%emt 0:00:31]} 36. Qxg7 {[%emt 0:03:37]} Re1+ {[%emt 0:00:09]} 37. Rxe1 {[%emt 0:00:01]} Bxg7 {[%emt 0:00:07]} 38. Nd6+ {[%emt 0:00:14]} 1-0